bitfinex-derivatives/quotes_BTCF0:USTF0_20240820
["timestamp","ask_amount","ask_price","bid_price","bid_amount"]
[1724166100499,0.067552,59195.0,59180.0,0.3608]
[1724166100694,0.3608,59197.0,59176.0,0.3608]
[1724166100695,0.0643887,59185.0,59176.0,0.3608]
[1724166100895,0.0643887,59188.0,59185.0,2.02896]
[1724166101098,0.0643887,59188.0,59185.0,1.96980808]
[1724166101311,0.3608,59186.0,59177.0,0.1094]
[1724166101610,0.09553553,59198.0,59177.0,0.1094]
[1724166101611,0.06436652,59185.0,59183.0,1.96980808]
[1724166101999,0.06436652,59185.0,59177.0,0.11028]
[1724166102000,0.3608,59184.0,59177.0,0.1094]
[1724166102302,0.3608,59184.0,59180.0,1.96980808]
[1724166102303,0.3608,59183.0,59180.0,1.96980808]
[1724166102506,0.3608,59183.0,59179.0,1.96980808]
[1724166102716,0.06440314,59180.0,59179.0,1.96980808]
[1724166103004,0.06440314,59181.0,59179.0,1.96980808]
[1724166103506,0.06440314,59181.0,59177.0,0.1094]
[1724166103715,0.36105342,59190.0,59184.0,0.067564]
[1724166104010,0.36105342,59190.0,59181.0,1.88530288]
[1724166104011,0.06443495,59185.0,59181.0,1.88530288]
[1724166104398,0.06443268,59187.0,59184.0,1.95286688]
[1724166104603,0.06443268,59188.0,59186.0,1.88530288]
[1724166104806,0.0646861,59190.0,59187.0,1.88530288]
[1724166105001,0.00025342,59190.0,59188.0,2.24610288]
[1724166105205,0.00025342,59190.0,59189.0,1.88530288]
[1724166105407,0.00025342,59190.0,59189.0,3.43460667]
[1724166105806,0.06443268,59197.0,59189.0,1.83460667]
[1724166106104,0.1471443,59201.0,59196.0,1.83460667]
[1724166106105,0.06443268,59201.0,59196.0,1.83460667]
[1724166106306,0.3608,59213.0,59193.0,0.3608]
[1724166106307,0.06443268,59204.0,59199.0,0.2826]
[1724166106515,0.06443268,59204.0,59148.0,0.0932]
[1724166106516,0.3608,59184.0,59148.0,0.0932]
[1724166106716,0.067604,59149.0,59148.0,0.0932]
[1724166106903,0.067609,59145.0,59122.0,0.067635]
[1724166107109,0.3608,59145.0,59115.0,0.3608]
[1724166107313,0.3608,59127.0,59125.0,1.83460667]
[1724166107610,0.00016323,59126.0,59109.0,0.3608]
[1724166107813,0.00016323,59126.0,59117.0,0.06764]
[1724166108007,0.00016323,59126.0,59125.0,1.83460667]
[1724166108213,1e-08,59126.0,59125.0,1.83460667]
[1724166108511,0.067619,59137.0,59135.0,1.40946324]
[1724166108704,0.3608,59145.0,59139.0,1.40946324]
[1724166108905,0.06432937,59143.0,59139.0,1.6]
[1724166109105,0.42512937,59152.0,59145.0,1.40946324]
[1724166109307,0.067608,59146.0,59145.0,1.40946324]
[1724166109720,0.067611,59143.0,59134.0,0.3608]
[1724166109908,0.067603,59151.0,59149.0,1.40946324]
[1724166110109,0.3608,59152.0,59147.0,1.40946324]
[1724166110313,0.00025366,59154.0,59151.0,1.40946324]
[1724166110615,0.067603,59150.0,59149.0,0.3608]
[1724166111012,0.36105366,59154.0,59149.0,3.37026324]
[1724166111013,0.00025366,59154.0,59149.0,3.37026324]
[1724166111217,0.00025366,59154.0,59153.0,1.40946324]
[1724166111411,0.00025366,59154.0,59150.0,0.0993]
[1724166111605,0.067601,59152.0,59150.0,0.0993]
[1724166111808,0.00025366,59154.0,59150.0,0.0993]
[1724166111809,0.00025366,59154.0,59153.0,1.40946324]
[1724166112319,0.067588,59164.0,59153.0,3.40946324]
[1724166112523,0.3608,59167.0,59166.0,1.40946324]
[1724166112708,0.067583,59168.0,59166.0,1.40946324]
[1724166112910,0.067583,59168.0,59167.0,1.40946324]
[1724166113417,0.067583,59168.0,59167.0,3.37026324]
[1724166113605,0.44122929,59181.0,59167.0,3.37026324]
[1724166113606,0.00025366,59173.0,59167.0,3.37026324]
[1724166113805,0.00025366,59173.0,59172.0,0.3608]
[1724166114008,0.067573,59177.0,59172.0,1.77026324]
[1724166114315,0.3608,59194.0,59167.0,2.3618]
[1724166114316,0.067583,59168.0,59167.0,0.001]
[1724166114518,0.09655311,59185.0,59167.0,2.3608]
[1724166114820,0.06728021,59184.0,59182.0,0.3608]
[1724166115112,0.13205381,59185.0,59184.0,0.90390458]
[1724166115311,0.13484278,59185.0,59184.0,0.90390458]
[1724166115515,0.14278897,59185.0,59177.0,4.4e-07]
[1724166115713,0.3608,59178.0,59177.0,4.4e-07]
[1724166116011,0.067586,59165.0,59164.0,0.3608]
[1724166116812,0.07037598,59165.0,59164.0,0.3608]
[1724166117013,0.067597,59156.0,59153.0,0.3608]
[1724166117204,0.0644973,59156.0,59153.0,0.3608]
[1724166117407,0.067598,59155.0,59153.0,0.3608]
[1724166117717,0.067598,59155.0,59150.0,0.0993]
[1724166117718,0.0676,59153.0,59150.0,0.0993]
[1724166117916,0.067602,59151.0,59140.0,0.4556]
[1724166118217,0.067613,59141.0,59140.0,0.3608]
[1724166118419,0.067615,59140.0,59139.0,2.4e-07]
[1724166118614,0.79530126,59140.0,59139.0,2.4e-07]
[1724166118814,0.067635,59122.0,59121.0,0.3608]
[1724166119119,0.067635,59122.0,59121.0,1.19689358]
[1724166119310,0.067635,59122.0,59121.0,0.3608]
[1724166119818,0.06775724,59122.0,59121.0,0.3608]
[1724166120119,0.06775724,59122.0,59121.0,1.19689358]
[1724166120325,0.0644168,59137.0,59121.0,3.19689358]
[1724166120615,0.06435739,59154.0,59145.0,0.70734145]
[1724166120822,0.06435739,59163.0,59157.0,0.70734145]
[1724166121117,0.067588,59163.0,59162.0,0.3608]
[1724166121413,0.067588,59163.0,59162.0,1.06814145]
[1724166121615,0.067582,59169.0,59162.0,3.02894145]
[1724166121914,0.067583,59168.0,59167.0,0.3608]
[1724166122114,0.067585,59166.0,59165.0,0.70822145]
[1724166122424,0.067585,59166.0,59157.0,0.00025366]
[1724166122425,0.067594,59158.0,59157.0,0.00025366]
[1724166122609,0.217594,59158.0,59157.0,0.00025366]
[1724166122917,0.217594,59158.0,59157.0,0.70759511]
[1724166122918,0.067594,59158.0,59157.0,0.70759511]
[1724166123817,0.067594,59158.0,59157.0,1.06839511]
[1724166124019,0.067594,59158.0,59157.0,2.66839511]
[1724166124814,0.00862399,59169.0,59157.0,2.66839511]
[1724166125020,0.00025366,59171.0,59168.0,1.06814145]
[1724166125217,0.07661654,59171.0,59170.0,0.70734145]
[1724166125415,0.06783266,59171.0,59170.0,0.65662008]
[1724166126013,0.00025366,59171.0,59170.0,0.65662008]
[1724166126220,0.067565,59184.0,59170.0,0.65662008]
[1724166126221,0.06435739,59187.0,59170.0,2.25662008]
[1724166126515,0.06757,59179.0,59178.0,0.3608]
[1724166126815,0.067573,59176.0,59175.0,0.65662008]
[1724166127020,0.06435739,59182.0,59175.0,1.01742008]
[1724166127218,0.067567,59182.0,59181.0,1.01742008]
[1724166129321,0.237567,59182.0,59181.0,0.3608]
[1724166129917,0.06452195,59184.0,59181.0,1.01742008]
[1724166130225,0.06772856,59184.0,59183.0,0.65662008]
[1724166131118,0.067567,59182.0,59181.0,0.3608]
[1724166131319,0.00016456,59184.0,59183.0,0.59745925]
[1724166131826,0.00016456,59184.0,59183.0,2.19745925]
[1724166132027,0.080521,59198.0,59183.0,2.19745925]
[1724166132028,0.080521,59206.0,59194.0,0.40099215]
[1724166132326,0.06456487,59204.0,59195.0,0.40099215]
[1724166132518,0.067547,59199.0,59195.0,0.40099215]
[1724166132821,0.79702487,59205.0,59198.0,0.40099215]
[1724166132822,0.00216,59205.0,59198.0,0.40099215]
[1724166133029,0.17216,59205.0,59204.0,0.76179215]
[1724166133227,0.080521,59216.0,59204.0,0.76179215]
[1724166133228,0.06456487,59215.0,59204.0,0.3608]
[1724166133419,0.067529,59215.0,59214.0,0.3608]
[1724166133721,0.067526,59218.0,59214.0,2.3216]
[1724166133918,0.00899399,59221.0,59214.0,2.3216]
[1724166134114,0.00216,59225.0,59220.0,0.3608]
[1724166134320,0.067522,59222.0,59220.0,0.3608]
[1724166134514,0.227522,59222.0,59220.0,0.3608]
[1724166135122,0.295044,59222.0,59214.0,0.3608]
[1724166135427,0.067521,59222.0,59221.0,0.3608]
[1724166135623,0.227521,59222.0,59221.0,0.3608]
[1724166135829,0.227521,59222.0,59216.0,0.3608]
[1724166135830,0.067527,59217.0,59216.0,0.3608]
[1724166136031,0.50871254,59227.0,59216.0,1.9608]
[1724166136230,0.067527,59217.0,59216.0,1.9608]
[1724166136731,0.067527,59217.0,59216.0,0.274628]
[1724166136915,0.067527,59217.0,59186.0,0.33614]
[1724166136916,0.067546,59200.0,59199.0,0.3608]
[1724166137121,0.067552,59195.0,59194.0,0.3608]
[1724166137826,0.067552,59195.0,59189.0,0.3608]
[1724166137827,0.067558,59190.0,59189.0,0.3608]
[1724166138129,0.067558,59190.0,59189.0,1.9608]
[1724166138524,0.067558,59190.0,59189.0,1.96105344]
[1724166138731,0.067552,59195.0,59189.0,1.96105344]
[1724166138916,0.00025269,59200.0,59194.0,0.3608]
[1724166139238,0.00025269,59200.0,59154.0,0.3608]
[1724166139239,0.067581,59170.0,59154.0,0.3608]
[1724166139425,0.067584,59167.0,59165.0,0.35203108]
[1724166139625,0.067584,59167.0,59154.0,0.3608]
[1724166139626,0.067603,59150.0,59148.0,0.0929]
[1724166139823,0.067603,59150.0,59148.0,1.6929]
[1724166140225,0.00013086,59149.0,59148.0,0.0929]
[1724166141020,0.00025344,59155.0,59148.0,2.5609]
[1724166141224,0.00025344,59155.0,59153.0,0.3608]
[1724166141427,0.067587,59165.0,59153.0,0.3608]
[1724166141625,0.067578,59173.0,59164.0,0.3608]
[1724166141926,0.7321,59174.0,59153.0,1.9608]
[1724166141927,0.0018,59174.0,59169.0,0.3608]
[1724166142131,0.3608,59183.0,59169.0,0.3608]
[1724166142326,0.16,59183.0,59174.0,0.3608]
[1724166142527,0.067572,59178.0,59174.0,0.3608]
[1724166142717,0.067572,59178.0,59174.0,1.9608]
[1724166142918,0.00025269,59182.0,59170.0,0.00025344]
[1724166142919,0.3608,59177.0,59170.0,0.00025344]
[1724166143126,0.3608,59177.0,59172.0,0.3608]
[1724166143429,0.00025269,59182.0,59175.0,0.3608]
[1724166143625,0.00025269,59182.0,59175.0,1.9608]
[1724166143817,0.06781969,59182.0,59175.0,1.9608]
[1724166144023,0.067572,59178.0,59175.0,1.9608]
[1724166144220,0.067573,59176.0,59175.0,1.9608]
[1724166144628,0.00025269,59182.0,59175.0,1.9608]
[1724166144831,0.06781969,59182.0,59175.0,1.9608]
[1724166145131,0.00025269,59182.0,59181.0,0.3608]
[1724166145533,0.00025269,59182.0,59181.0,1.9608]
[1724166145721,0.00892796,59198.0,59184.0,0.067564]
[1724166145921,0.3608,59205.0,59191.0,0.3608]
[1724166146130,0.067547,59200.0,59196.0,0.3608]
[1724166146634,0.067549,59198.0,59196.0,1.6]
[1724166146825,0.067549,59198.0,59197.0,0.3608]
[1724166147026,0.067549,59198.0,59197.0,1.6]
[1724166147340,0.067549,59198.0,59196.0,0.00088]
[1724166147635,0.067549,59198.0,59196.0,1.6]
[1724166148431,0.07654953,59198.0,59196.0,1.6]
[1724166148734,0.04835592,59207.0,59196.0,1.6]
[1724166148735,0.067543,59203.0,59196.0,1.9608]
[1724166148926,0.067543,59203.0,59202.0,0.3608]
[1724166149739,0.578543,59203.0,59202.0,0.3608]
[1724166150734,0.067571,59178.0,59161.0,0.067591]
[1724166151032,1.300171,59178.0,59177.0,1.6]
[1724166151239,0.8718,59178.0,59177.0,1.6]
[1724166151423,0.511,59178.0,59177.0,1.6]
[1724166151623,0.3608,59188.0,59177.0,2.10696]
[1724166151624,0.8718,59188.0,59177.0,2.10696]
[1724166151822,0.3608,59182.0,59177.0,1.6]
[1724166152025,0.646142,59178.0,59177.0,0.00025344]
[1724166152634,0.067587,59164.0,59161.0,0.0918]
[1724166152932,0.067587,59164.0,59156.0,0.0948]
[1724166152933,1.166974,59164.0,59136.0,0.3608]
[1724166153133,0.067608,59146.0,59137.0,0.0918]
[1724166153433,0.7216,59142.0,59137.0,0.0918]
[1724166153636,0.511,59138.0,59137.0,1.0418]
[1724166154038,0.51116876,59138.0,59137.0,1.0418]
[1724166154424,0.51116876,59138.0,59137.0,0.0918]
[1724166154634,0.51116876,59138.0,59112.0,0.14302422]
[1724166154635,1.16844876,59138.0,59113.0,0.3608]
[1724166154829,1.16844876,59138.0,59112.0,1.03415554]
[1724166154830,0.8718,59120.0,59112.0,1.03415554]
[1724166155034,0.00016876,59119.0,59113.0,0.3608]
[1724166155231,0.067621,59135.0,59118.0,0.3608]
[1724166155533,0.36105344,59145.0,59113.0,0.3608]
[1724166155534,0.36105344,59145.0,59133.0,0.3608]
[1724166155931,0.067613,59142.0,59133.0,0.439]
[1724166156227,0.36105344,59145.0,59138.0,0.3608]
[1724166156228,0.00025344,59145.0,59138.0,0.3608]
[1724166156431,0.00896543,59154.0,59138.0,0.3608]
[1724166156432,0.067597,59156.0,59144.0,0.3608]
[1724166156630,0.00901379,59160.0,59144.0,0.3608]
[1724166156831,0.00901379,59160.0,59150.0,0.3608]
[1724166156832,0.067592,59160.0,59150.0,0.3608]
[1724166157027,0.00208001,59162.0,59150.0,0.3608]
[1724166157228,0.00885298,59168.0,59156.0,0.7216]
[1724166157448,0.067576,59175.0,59164.0,0.3608]
[1724166157826,0.067576,59175.0,59166.0,0.3608]
[1724166158043,0.067576,59175.0,59166.0,0.439]
[1724166158339,0.36288001,59182.0,59171.0,0.3608]
[1724166158534,0.3608,59191.0,59178.0,0.3608]
[1724166158741,0.3608,59191.0,59185.0,0.3608]
[1724166159437,0.00025344,59190.0,59185.0,0.439]
[1724166159641,0.00025344,59190.0,59179.0,3.77]
[1724166159830,0.067569,59180.0,59179.0,3.77]
[1724166160231,0.06757,59179.0,59174.0,0.3608]
[1724166160432,0.3608,59183.0,59174.0,0.36105344]
[1724166160640,0.3608,59183.0,59174.0,0.00025344]
[1724166160641,0.067574,59176.0,59174.0,0.00025344]
[1724166160840,0.067574,59176.0,59174.0,3.77025344]
[1724166161137,0.067574,59176.0,59174.0,0.00025344]
[1724166161543,0.067574,59176.0,59175.0,3.77]
[1724166161745,0.067574,59176.0,59174.0,0.00025344]
[1724166162044,0.428374,59176.0,59174.0,0.00025344]
[1724166162542,0.067591,59161.0,59160.0,0.3608]
[1724166162931,0.067585,59166.0,59155.0,0.00017529]
[1724166163234,0.067585,59166.0,59155.0,0.43917529]
[1724166163235,0.067592,59160.0,59155.0,0.43917529]
[1724166163636,0.067585,59166.0,59155.0,0.43917529]
[1724166163836,0.3608,59167.0,59155.0,0.43917529]
[1724166163837,0.067586,59165.0,59160.0,0.3608]
[1724166164036,0.00025344,59163.0,59160.0,0.439]
[1724166164238,0.06759,59162.0,59160.0,0.3608]
[1724166164436,0.00025344,59163.0,59160.0,0.439]
[1724166165538,0.067589,59162.0,59160.0,0.439]
[1724166165936,0.00025344,59163.0,59160.0,0.439]
[1724166167337,0.00025344,59163.0,59161.0,0.50708]
[1724166167842,0.00025344,59163.0,59161.0,0.0782]
[1724166168242,0.067589,59162.0,59161.0,0.0782]
[1724166169345,0.067589,59162.0,59156.0,3.77]
[1724166169346,0.067595,59157.0,59156.0,3.77]
[1724166169649,0.067595,59157.0,59155.0,0.00017529]
[1724166169947,0.3608,59159.0,59155.0,0.00017529]
[1724166169948,0.067596,59156.0,59155.0,0.00017529]
[1724166170935,0.135192,59156.0,59155.0,0.00017529]
[1724166171145,0.495992,59156.0,59155.0,0.00017529]
[1724166171741,1.470708,59156.0,59155.0,0.00017529]
[1724166172842,1.003112,59156.0,59155.0,0.00017529]
[1724166173039,0.428396,59156.0,59155.0,0.00017529]
[1724166173245,0.067596,59156.0,59155.0,0.07837529]
[1724166174048,0.067596,59156.0,59155.0,0.00017529]
[1724166174542,0.07646328,59156.0,59155.0,0.00017529]
[1724166174742,0.428391,59161.0,59155.0,0.00017529]
[1724166174743,0.3608,59161.0,59155.0,0.14597229]
[1724166174947,0.5132,59162.0,59158.0,0.3608]
[1724166175143,0.067592,59160.0,59158.0,0.3608]
[1724166175334,0.067593,59159.0,59158.0,0.439]
[1724166175950,0.067593,59159.0,59158.0,0.0782]
[1724166177247,0.067593,59159.0,59156.0,0.3608]
[1724166177248,0.067595,59157.0,59156.0,0.3608]
[1724166177547,0.51316001,59162.0,59155.0,0.00017529]
[1724166177548,0.202788,59156.0,59155.0,0.00017529]
[1724166177742,0.372788,59156.0,59155.0,0.00017529]
[1724166177941,0.879908,59156.0,59155.0,0.00017529]
[1724166178148,0.4093673,59160.0,59155.0,0.07837529]
[1724166178149,0.3608,59160.0,59155.0,0.07837529]
[1724166178351,0.06759,59162.0,59159.0,0.3608]
[1724166178549,0.00025344,59163.0,59159.0,0.3608]
[1724166178846,0.06759,59162.0,59159.0,0.439]
[1724166179054,0.067592,59160.0,59159.0,0.439]
[1724166179648,0.067596,59156.0,59155.0,0.00017529]
[1724166179848,0.00025344,59163.0,59155.0,0.07837529]
[1724166179849,0.067593,59159.0,59155.0,0.07837529]
[1724166180150,0.067594,59158.0,59155.0,0.07837529]
[1724166180342,0.067595,59157.0,59155.0,0.07837529]
[1724166180540,0.067591,59161.0,59155.0,0.07837529]
[1724166180741,0.067593,59159.0,59154.0,0.32677329]
[1724166181151,0.00025344,59163.0,59156.0,0.3608]
[1724166181649,0.00025344,59163.0,59152.0,0.00025344]
[1724166181650,0.0676,59153.0,59152.0,0.00025344]
[1724166181848,0.0676,59153.0,59152.0,0.06785444]
[1724166181849,0.00017322,59153.0,59152.0,0.06785444]
[1724166182050,0.06777322,59153.0,59152.0,0.00025344]
[1724166182352,0.20297322,59153.0,59152.0,0.00025344]
[1724166182542,0.71397322,59153.0,59152.0,0.00025344]
[1724166182741,1.79113322,59153.0,59152.0,0.00025344]
[1724166183053,1.79113322,59153.0,59124.0,0.00018976]
[1724166183054,1.94913322,59153.0,59124.0,0.00018976]
[1724166183249,0.067632,59125.0,59124.0,0.00018976]
[1724166183451,0.0677889,59125.0,59124.0,0.00018976]
[1724166183752,0.2277889,59125.0,59124.0,0.00018976]
[1724166184454,0.2177889,59125.0,59124.0,0.00018976]
[1724166184644,0.0001569,59125.0,59124.0,0.00018976]
[1724166184845,0.0677889,59125.0,59124.0,0.00018976]
[1724166185453,1e-08,59125.0,59124.0,1.26838976]
[1724166185753,0.3608,59145.0,59124.0,1.26838976]
[1724166185754,0.578603,59151.0,59138.0,0.067617]
[1724166186054,0.428407,59147.0,59135.0,0.3608]
[1724166186261,0.428414,59141.0,59129.0,0.428427]
[1724166186552,0.067613,59141.0,59129.0,0.428427]
[1724166186755,0.428407,59147.0,59129.0,0.428427]
[1724166186756,0.067608,59146.0,59136.0,0.428418]
[1724166186949,0.00025369,59141.0,59136.0,0.3608]
[1724166187144,0.00025369,59141.0,59136.0,0.3598]
[1724166188155,0.3608,59160.0,59137.0,0.86808]
[1724166188353,0.067587,59164.0,59136.0,0.7598]
[1724166188354,0.00208001,59161.0,59156.0,0.3608]
[1724166188545,0.067582,59169.0,59156.0,0.3608]
[1724166188751,0.067583,59168.0,59162.0,0.3608]
[1724166189051,0.3608,59171.0,59162.0,0.3608]
[1724166189352,0.428379,59171.0,59162.0,0.3608]
[1724166190151,0.067581,59170.0,59163.0,3.77]
[1724166190459,0.00025369,59172.0,59163.0,3.77]
[1724166190647,0.00025369,59172.0,59167.0,0.3608]
[1724166191647,0.00025369,59172.0,59169.0,0.3608]
[1724166192159,0.00025369,59172.0,59163.0,4.13168]
[1724166192346,0.067587,59164.0,59163.0,3.77]
[1724166192545,0.067587,59164.0,59161.0,6.9e-07]
[1724166192546,0.428387,59164.0,59161.0,6.9e-07]
[1724166192750,0.428387,59164.0,59138.0,0.1411]
[1724166192751,0.067591,59161.0,59138.0,0.19129868]
[1724166192952,0.067591,59161.0,59129.0,0.3608]
[1724166192953,0.067617,59138.0,59129.0,0.3608]
[1724166193152,0.067618,59137.0,59129.0,0.3608]
[1724166193456,0.3608,59141.0,59129.0,0.3608]
[1724166193645,0.36105369,59141.0,59129.0,0.36105369]
[1724166193846,0.36105369,59141.0,59129.0,0.00025369]
[1724166193847,0.067626,59130.0,59129.0,0.00025369]
[1724166194050,0.067626,59130.0,59129.0,0.36105369]
[1724166194251,0.067626,59130.0,59129.0,0.00025369]
[1724166194855,0.06762,59136.0,59129.0,0.00025369]
[1724166195056,0.36105369,59141.0,59129.0,0.00025369]
[1724166195256,0.067619,59136.0,59135.0,0.3608]
[1724166195453,0.067619,59136.0,59129.0,0.00025369]
[1724166195454,0.067626,59130.0,59129.0,0.00025369]
[1724166196145,0.067619,59137.0,59129.0,1.26841369]
[1724166196347,0.067619,59137.0,59134.0,0.3608]
[1724166196755,0.36105369,59141.0,59134.0,0.3608]
[1724166197346,0.00025369,59141.0,59140.0,0.428415]
[1724166197550,0.067599,59154.0,59146.0,0.067607]
[1724166197755,0.3608,59160.0,59151.0,0.3608]
[1724166198352,0.5008,59160.0,59151.0,0.3608]
[1724166198562,0.3608,59165.0,59159.0,0.3608]
[1724166199256,0.428386,59165.0,59159.0,0.3608]
[1724166199458,0.00025369,59161.0,59159.0,0.3608]
[1724166199665,0.067578,59173.0,59163.0,0.067587]
[1724166199962,0.067578,59173.0,59169.0,0.3608]
[1724166200364,0.067571,59178.0,59169.0,0.3608]
[1724166200662,0.067571,59178.0,59176.0,0.3608]
[1724166201363,0.067571,59178.0,59169.0,0.3608]
[1724166201364,0.067573,59177.0,59169.0,0.3608]
[1724166201963,0.067576,59175.0,59169.0,0.3608]
[1724166202664,0.067576,59175.0,59168.0,0.00025348]
[1724166202871,0.3608,59181.0,59168.0,0.36105348]
[1724166203164,0.3608,59169.0,59152.0,0.36168]
[1724166203363,0.511,59167.0,59152.0,0.3608]
[1724166203567,0.3608,59162.0,59152.0,0.3608]
[1724166203767,0.0676,59153.0,59152.0,0.3608]
[1724166203962,0.0676,59153.0,59141.0,0.3608]
[1724166203963,0.3608,59153.0,59141.0,0.3608]
[1724166204472,0.00025286,59153.0,59147.0,0.3608]
[1724166204966,0.00025286,59153.0,59152.0,0.3608]
[1724166205368,0.00025286,59153.0,59152.0,0.935561]
[1724166205574,0.00025286,59153.0,59152.0,0.3608]
[1724166205765,0.06785286,59153.0,59152.0,0.3608]
[1724166205960,0.00025286,59153.0,59152.0,0.3608]
[1724166206161,0.067573,59177.0,59152.0,0.3608]
[1724166206162,0.3608,59173.0,59152.0,0.86796]
[1724166206468,0.067581,59170.0,59164.0,0.3608]
[1724166207166,0.3608,59173.0,59164.0,0.3608]
[1724166207167,0.428378,59173.0,59164.0,0.3608]
[1724166207369,0.067584,59167.0,59164.0,0.3608]
[1724166207771,0.3608,59173.0,59164.0,0.3608]
[1724166208469,0.067583,59168.0,59164.0,0.3608]
[1724166208863,0.067578,59172.0,59164.0,0.3608]
[1724166209070,0.3608,59173.0,59164.0,0.3608]
[1724166209277,0.067583,59168.0,59164.0,0.3608]
[1724166209570,0.511,59176.0,59164.0,0.3608]
[1724166209876,0.06758,59170.0,59169.0,0.3608]
[1724166211679,0.06758,59170.0,59161.0,0.06784248]
[1724166211680,0.067586,59165.0,59161.0,0.00025348]
[1724166211875,0.067589,59162.0,59161.0,0.00025348]
[1724166212378,0.067594,59158.0,59157.0,0.3608]
[1724166213178,0.3608,59163.0,59157.0,0.428395]
[1724166213474,0.3608,59163.0,59157.0,0.3608]
[1724166213475,0.067594,59158.0,59157.0,0.3608]
[1724166214466,0.00025348,59163.0,59157.0,0.3608]
[1724166214673,0.00025348,59163.0,59162.0,0.3608]
[1724166215670,0.00025348,59163.0,59157.0,0.3608]
[1724166215871,0.067592,59160.0,59157.0,0.3608]
[1724166216065,0.00025348,59163.0,59157.0,0.3608]
[1724166216277,0.00025348,59163.0,59162.0,0.3608]
[1724166217175,0.00025348,59163.0,59162.0,0.428389]
[1724166217393,0.00025348,59163.0,59162.0,0.935469]
[1724166217591,0.00025348,59163.0,59162.0,0.3608]
[1724166217592,0.06784148,59163.0,59162.0,0.3608]
[1724166217791,0.06784148,59163.0,59162.0,4.1308]
[1724166218401,0.00025348,59163.0,59162.0,4.198389]
[1724166219088,0.00025348,59163.0,59162.0,4.1308]
[1724166219402,0.06784148,59163.0,59162.0,0.3608]
[1724166219591,0.06784148,59163.0,59157.0,0.3608]
[1724166219592,0.135188,59158.0,59157.0,0.3608]
[1724166219791,0.067594,59158.0,59157.0,0.3608]
[1724166220690,0.067594,59158.0,59157.0,0.86792]
[1724166221509,0.00025348,59163.0,59157.0,0.86792]
[1724166221693,0.00025348,59163.0,59157.0,0.3608]
[1724166222003,0.067592,59160.0,59157.0,0.3608]
[1724166222502,0.067594,59158.0,59157.0,0.3608]
[1724166222900,0.067594,59158.0,59157.0,0.428395]
[1724166223091,0.00025348,59163.0,59157.0,0.3608]
[1724166223406,0.00025348,59163.0,59162.0,0.3608]
[1724166223794,0.06784148,59163.0,59162.0,0.3608]
[1724166225203,0.00025348,59163.0,59162.0,0.3608]
[1724166225405,0.00025348,59163.0,59162.0,0.428389]
[1724166225599,0.00025348,59163.0,59162.0,0.3608]
[1724166225804,0.00025348,59163.0,59162.0,0.428389]
[1724166226005,0.06784148,59163.0,59162.0,0.3608]
[1724166226507,0.00025348,59163.0,59162.0,0.86788]
[1724166226699,0.06784148,59163.0,59162.0,0.3608]
[1724166226897,0.06784148,59163.0,59162.0,0.428389]
[1724166227108,0.06784148,59163.0,59162.0,4.198389]
[1724166227308,0.00025348,59163.0,59162.0,4.198389]
[1724166227499,0.00025348,59163.0,59162.0,4.705469]
[1724166227698,0.00025348,59163.0,59162.0,4.198389]
[1724166228403,0.067582,59169.0,59168.0,0.067583]
[1724166228609,0.067582,59169.0,59168.0,0.3608]
[1724166228998,0.135164,59169.0,59168.0,0.3608]
[1724166229406,0.067582,59169.0,59168.0,0.3608]
[1724166230005,0.067582,59169.0,59168.0,0.428383]
[1724166230211,0.066582,59169.0,59168.0,0.428383]
[1724166230605,0.066582,59169.0,59168.0,0.3608]
[1724166231209,0.066582,59169.0,59168.0,4.1308]
[1724166231509,0.067578,59173.0,59170.0,0.06758]
[1724166231709,0.067579,59172.0,59170.0,0.06758]
[1724166231905,0.067579,59171.0,59170.0,3.83758]
[1724166234206,0.00924154,59173.0,59170.0,3.83758]
[1724166234411,0.067578,59172.0,59170.0,3.83758]
[1724166236210,0.067579,59171.0,59170.0,3.77]
[1724166236617,0.44724727,59176.0,59170.0,3.77]
[1724166236815,0.44724727,59176.0,59170.0,3.837579]
[1724166237513,0.3608,59172.0,59166.0,0.05019868]
[1724166237721,0.067587,59164.0,59163.0,0.00025348]
[1724166238907,0.07671666,59164.0,59163.0,0.00025348]
[1724166239113,0.067583,59168.0,59163.0,0.00025348]
[1724166239507,0.4382,59169.0,59163.0,0.00025348]
[1724166239709,0.505782,59169.0,59163.0,0.00025348]
[1724166239912,0.067583,59168.0,59163.0,0.00025348]
[1724166240113,0.067586,59165.0,59163.0,0.00025348]
[1724166240317,0.4382,59169.0,59163.0,0.00025348]
[1724166240520,0.067583,59168.0,59163.0,0.06784148]
[1724166240716,0.4382,59169.0,59163.0,0.00025348]
[1724166240919,0.135174,59164.0,59163.0,0.00025348]
[1724166241115,0.135174,59164.0,59150.0,0.3608]
[1724166241116,0.067594,59159.0,59149.0,0.05019868]
[1724166241415,0.067594,59159.0,59141.0,0.067613]
[1724166241416,0.799,59150.0,59140.0,0.05062101]
[1724166241813,0.799,59150.0,59138.0,0.05062101]
[1724166241814,0.06761,59144.0,59138.0,0.05062101]
[1724166242008,0.799,59150.0,59136.0,0.067619]
[1724166242210,0.799,59150.0,59141.0,0.3608]
[1724166242211,0.00025348,59149.0,59141.0,0.3608]
[1724166242413,0.00025348,59149.0,59137.0,0.00025348]
[1724166242414,0.067617,59138.0,59137.0,0.00025348]
[1724166242620,0.067624,59132.0,59124.0,0.00018976]
[1724166242820,0.067632,59125.0,59124.0,0.00018976]
[1724166243118,0.067646,59113.0,59112.0,3.77]
[1724166243508,1.05752,59113.0,59101.0,0.08403]
[1724166243717,0.4382,59102.0,59101.0,0.08403]
[1724166243919,0.43840815,59102.0,59101.0,0.08403]
[1724166244221,1.48600815,59102.0,59101.0,0.08403]
[1724166244431,0.067659,59101.0,59100.0,0.1]
[1724166244720,0.715259,59101.0,59100.0,0.1]
[1724166244909,1.115259,59101.0,59100.0,0.1]
[1724166245109,0.6476,59101.0,59100.0,0.1]
[1724166245315,0.14,59101.0,59100.0,0.1]
[1724166245508,0.00020815,59102.0,59100.0,0.1]